[Event "41st Jacques-Lemans-Open 2022"]
[Site "St. Veit/Glan"]
[Date "2022.07.12"]
[Round "5.24"]
[White "Ljubic, Luka"]
[Black "Hoffmann, Sebastian"]
[Result "0-1"]
[ECO "D30"]
[WhiteElo "1768"]
[BlackElo "2148"]
[Annotator "ChessBase"]
[PlyCount "66"]
[EventDate "2022.07.09"]
[EventType "swiss"]
[EventCountry "AUT"]
[SourceTitle "playchess.com"]
[Source "ChessBase"]
[SourceQuality "1"]
[TimeControl "40/5400+30:1800+30"]

1. d4 {[%emt 0:00:04]} d5 {[%emt 0:00:23]} 2. c4 {[%emt 0:00:07]} e6 {[%emt 0:00:27]} 3. Nf3 {[%emt 0:00:35]} Nf6 {[%emt 0:00:14]} 4. g3 {[%emt 0:00:40]} c5 {[%emt 0:01:00]} 5. cxd5 {[%emt 0:00:59]} exd5 {[%emt 0:00:08]} 6. Bg2 {[%emt 0:00:13]} Nc6 {[%emt 0:00:58]} 7. O-O {[%emt 0:00:26]} c4 {[%emt 0:03:20]} 8. Nc3 {[%emt 0:03:06]} Bb4 {[%emt 0:00:41]} 9. Bg5 {[%emt 0:02:19]} Bxc3 {[%emt 0:06:15]} 10. bxc3 {[%emt 0:01:20]} Bf5 {[%emt 0:03:58]} 11. Nd2 {[%emt 0:05:29]} Qa5 {[%emt 0:03:50]} 12. Bxf6 {[%emt 0:04:08]} gxf6 {[%emt 0:00:09]} 13. e4 {[%emt 0:06:14]} Bxe4 {[%emt 0:05:16]} 14. Bxe4 {[%emt 0:05:51]} dxe4 {[%emt 0:00:07]} 15. Nxe4 {[%emt 0:01:09]} O-O-O {[%emt 0:03:27]} 16. Qf3 {[%emt 0:07:07]} Qd5 {[%emt 0:02:39]} 17. Qf4 {[%emt 0:16:25]} f5 {[%emt 0:10:08]} 18. Nc5 {[%emt 0:01:54]} Rhg8 {[%emt 0:06:39]} 19. h3 {[%emt 0:07:26]} h5 {[%emt 0:04:13]} 20. Rab1 {[%emt 0:05:23]} b6 {[%emt 0:03:50]} 21. Na6 {[%emt 0:01:04]} Kb7 {[%emt 0:05:24]} 22. Nb4 {[%emt 0:02:35]} Nxb4 {[%emt 0:00:37]} 23. Rxb4 {[%emt 0:01:09]} Rde8 {[%emt 0:00:38]} 24. a4 {[%emt 0:03:20]} a6 {[%emt 0:07:10]} 25. Qh6 {[%emt 0:04:29]} Rg6 {[%emt 0:02:53]} 26. Qxh5 {[%emt 0:00:47]} Qe4 {[%emt 0:06:33]} 27. Rfb1 {[%emt 0:05:09]} f4 {[%emt 0:06:23]} 28. g4 {[%emt 0:02:19]} Ree6 {[%emt 0:04:15]} 29. Qh4 {[%emt 0:11:28]} f3 {[%emt 0:02:56]} 30. Rf1 {[%emt 0:01:42]} f5 {[%emt 0:05:02]} 31. Kh1 {[%emt 0:00:28]} Rh6 {[%emt 0:01:20]} 32. Qg3 {[%emt 0:00:22]} f4 {[%emt 0:00:06]} 33. Qh2 {[%emt 0:00:34]} Qh7 {[%emt 0:00:10]} 0-1

[Event "41st Jacques-Lemans-Open 2022"]
[Site "St. Veit/Glan"]
[Date "2022.07.12"]
[Round "5.25"]
[White "Leitner, Gerald"]
[Black "Wolfmajer, Wolfgang"]
[Result "1-0"]
[ECO "B33"]
[WhiteElo "2145"]
[BlackElo "1861"]
[Annotator "ChessBase"]
[PlyCount "93"]
[EventDate "2022.07.09"]
[EventType "swiss"]
[EventCountry "AUT"]
[SourceTitle "playchess.com"]
[Source "ChessBase"]
[SourceQuality "1"]
[TimeControl "40/5400+30:1800+30"]

1. e4 {[%emt 0:00:03]} c5 {[%emt 0:00:08]} 2. Nf3 {[%emt 0:00:45]} Nc6 {[%emt 0:00:27]} 3. Nc3 {[%emt 0:01:45]} Nf6 {[%emt 0:01:03]} 4. d4 {[%emt 0:00:24]} cxd4 {[%emt 0:00:06]} 5. Nxd4 {[%emt 0:00:01]} e5 {[%emt 0:00:12]} 6. Ndb5 {[%emt 0:00:08]} d6 {[%emt 0:00:10]} 7. Bg5 {[%emt 0:01:38]} a6 {[%emt 0:00:30]} 8. Bxf6 {[%emt 0:01:18]} gxf6 {[%emt 0:00:08]} 9. Na3 {[%emt 0:00:01]} b5 {[%emt 0:00:18]} 10. Nd5 {[%emt 0:00:03]} f5 {[%emt 0:00:53]} 11. Bd3 {[%emt 0:06:42]} Be6 {[%emt 0:04:35]} 12. O-O {[%emt 0:02:52]} f4 {[%emt 0:01:34]} 13. c4 {[%emt 0:01:58]} b4 {[%emt 0:02:15]} 14. Nc2 {[%emt 0:00:47]} Rb8 {[%emt 0:00:18]} 15. b3 {[%emt 0:01:00]} Bg7 {[%emt 0:02:37]} 16. Kh1 {[%emt 0:06:34]} O-O {[%emt 0:04:12]} 17. g3 {[%emt 0:15:48]} f5 {[%emt 0:08:31]} 18. Qh5 {[%emt 0:04:43]} Qd7 {[%emt 0:07:47]} 19. Rae1 {[%emt 0:10:56]} Bxd5 {[%emt 0:10:44]} 20. exd5 {[%emt 0:03:00]} Ne7 {[%emt 0:01:15]} 21. gxf4 {[%emt 0:00:09]} e4 {[%emt 0:01:11]} 22. Be2 {[%emt 0:01:10]} Ng6 {[%emt 0:02:30]} 23. Qg5 {[%emt 0:02:19]} Bf6 {[%emt 0:03:03]} 24. Qg3 {[%emt 0:00:36]} Kh8 {[%emt 0:00:15]} 25. Rg1 {[%emt 0:06:13]} Rg8 {[%emt 0:02:06]} 26. Qe3 {[%emt 0:00:11]} Rb7 {[%emt 0:16:44]} 27. Bh5 {[%emt 0:00:40]} Rg7 {[%emt 0:02:27]} 28. Rg3 {[%emt 0:04:58]} Rb8 {[%emt 0:06:53]} 29. Reg1 {[%emt 0:01:12]} Qf7 {[%emt 0:02:47]} 30. Rh3 {[%emt 0:04:19]} a5 {[%emt 0:02:12]} 31. Bxg6 {[%emt 0:08:35]} Rxg6 {[%emt 0:00:26]} 32. Rxg6 {[%emt 0:00:19]} Qxg6 {[%emt 0:00:11]} 33. Nd4 {[%emt 0:07:01]} Qg4 {[%emt 0:00:12]} 34. Ne6 {[%emt 0:00:27]} Bc3 {[%emt 0:08:28]} 35. Rg3 {[%emt 0:00:57]} Qd1+ {[%emt 0:00:55]} 36. Kg2 {[%emt 0:00:01]} Rb7 {[%emt 0:00:31]} 37. h3 {[%emt 0:03:28]} a4 {[%emt 0:04:18]} 38. Rg5 {[%emt 0:00:32]} Qd3 {[%emt 0:02:34]} 39. Rxf5 {[%emt 0:00:34]} h6 {[%emt 0:00:31]} 40. Rf8+ {[%emt 0:04:32]} Kh7 {[%emt 0:00:10]} 41. f5 {[%emt 0:05:14]} axb3 {[%emt 0:01:25]} 42. axb3 {[%emt 0:00:01]} Bd2 {[%emt 0:00:35]} 43. Qg3 {[%emt 0:03:37]} Qxg3+ {[%emt 0:00:51]} 44. Kxg3 {[%emt 0:01:50]} Ra7 {[%emt 0:00:05]} 45. Rd8 {[%emt 0:06:54]} Ra3 {[%emt 0:00:25]} 46. Rd7+ {[%emt 0:00:06]} Kh8 {[%emt 0:00:50]} 47. f6 {[%emt 0:01:09]} 1-0

[Event "41st Jacques-Lemans-Open 2022"]
[Site "St. Veit/Glan"]
[Date "2022.07.12"]
[Round "5.26"]
[White "Stadlinger, Matthias"]
[Black "Hresc, Vladimir"]
[Result "0-1"]
[ECO "A05"]
[WhiteElo "1975"]
[BlackElo "2308"]
[Annotator "ChessBase"]
[PlyCount "76"]
[EventDate "2022.07.09"]
[EventType "swiss"]
[EventCountry "AUT"]
[SourceTitle "playchess.com"]
[Source "ChessBase"]
[SourceQuality "1"]
[TimeControl "40/5400+30:1800+30"]

1. Nf3 {[%emt 0:00:03]} Nf6 {[%emt 0:00:13]} 2. g3 {[%emt 0:00:03]} d5 {[%emt 0:00:12]} 3. Bg2 {[%emt 0:00:05]} c6 {[%emt 0:00:30]} 4. O-O {[%emt 0:00:00]} g6 {[%emt 0:00:12]} 5. d4 {[%emt 0:00:04]} Bg7 {[%emt 0:00:50]} 6. Ne5 Nfd7 7. f4 {[%emt 0:03:29]} f6 {[%emt 0:02:02]} 8. Nd3 {[%emt 0:03:20]} O-O {[%emt 0:01:47]} 9. f5 {[%emt 0:10:35]} gxf5 {[%emt 0:05:08]} 10. Nf4 Nb6 11. Nh5 {[%emt 0:06:26]} Qe8 {[%emt 0:01:17]} 12. Nxg7 {[%emt 0:07:19]} Kxg7 {[%emt 0:00:02]} 13. Rf4 {[%emt 0:03:01]} Kh8 {[%emt 0:01:29]} 14. Rh4 {[%emt 0:01:36]} Rg8 {[%emt 0:04:39]} 15. Nc3 {[%emt 0:05:51]} N8d7 {[%emt 0:02:15]} 16. Bh6 {[%emt 0:06:06]} Nf8 {[%emt 0:01:56]} 17. Bf3 {[%emt 0:02:51]} Be6 {[%emt 0:00:25]} 18. Qd3 {[%emt 0:08:54]} Nc4 {[%emt 0:03:15]} 19. Na4 {[%emt 0:14:02]} b6 {[%emt 0:03:31]} 20. b3 {[%emt 0:02:09]} Nd6 {[%emt 0:00:14]} 21. Rf1 {[%emt 0:00:44]} Ng6 {[%emt 0:01:37]} 22. Bh5 {[%emt 0:02:26]} Bf7 {[%emt 0:01:36]} 23. Bxg6 {[%emt 0:07:04]} Bxg6 {[%emt 0:03:59]} 24. Nc3 {[%emt 0:02:05]} f4 {[%emt 0:00:46]} 25. Qf3 {[%emt 0:00:28]} fxg3 {[%emt 0:00:39]} 26. hxg3 {[%emt 0:00:02]} Nf5 {[%emt 0:00:48]} 27. Rh3 {[%emt 0:02:59]} Nxd4 {[%emt 0:00:47]} 28. Qf4 {[%emt 0:02:52]} Ne6 {[%emt 0:01:45]} 29. Qh4 {[%emt 0:00:32]} Qf7 {[%emt 0:00:45]} 30. e4 {[%emt 0:02:12]} Ng7 {[%emt 0:02:57]} 31. g4 {[%emt 0:03:58]} dxe4 {[%emt 0:00:30]} 32. g5 {[%emt 0:00:40]} Nf5 {[%emt 0:01:18]} 33. Qf4 {[%emt 0:00:43]} Qe6 {[%emt 0:01:43]} 34. Re1 {[%emt 0:02:27]} Nxh6 {[%emt 0:01:30]} 35. Rxh6 {[%emt 0:00:07]} fxg5 {[%emt 0:00:14]} 36. Qg3 {[%emt 0:01:19]} Qd6 {[%emt 0:01:10]} 37. Qh3 {[%emt 0:00:32]} Qd4+ {[%emt 0:00:48]} 38. Kh1 {[%emt 0:00:20]} Raf8 {[%emt 0:00:32]} 0-1

[Event "41st Jacques-Lemans-Open 2022"]
[Site "St. Veit/Glan"]
[Date "2022.07.12"]
[Round "5.27"]
[White "Kienboeck, Benjamin"]
[Black "Hengl, Philip"]
[Result "1-0"]
[ECO "B12"]
[WhiteElo "2151"]
[BlackElo "1968"]
[Annotator "ChessBase"]
[PlyCount "47"]
[EventDate "2022.07.09"]
[EventType "swiss"]
[EventCountry "AUT"]
[SourceTitle "playchess.com"]
[Source "ChessBase"]
[SourceQuality "1"]
[TimeControl "40/5400+30:1800+30"]

1. e4 {[%emt 0:00:05]} c6 {[%emt 0:00:10]} 2. d4 {[%emt 0:00:08]} d5 {[%emt 0:00:05]} 3. e5 {[%emt 0:00:08]} Bf5 {[%emt 0:00:05]} 4. c4 {[%emt 0:00:10]} e6 {[%emt 0:00:15]} 5. Nc3 {[%emt 0:00:12]} Bb4 {[%emt 0:02:11]} 6. h4 {[%emt 0:04:46]} h6 {[%emt 0:06:46]} 7. Nf3 {[%emt 0:06:15]} Ne7 {[%emt 0:03:32]} 8. Qb3 {[%emt 0:03:55]} Bxc3+ {[%emt 0:02:08]} 9. bxc3 {[%emt 0:01:52]} Qd7 {[%emt 0:11:40]} 10. Ba3 {[%emt 0:05:16]} O-O {[%emt 0:10:00]} 11. Rg1 {[%emt 0:04:55]} Re8 {[%emt 0:07:50]} 12. g4 {[%emt 0:03:54]} Bh7 {[%emt 0:04:00]} 13. h5 {[%emt 0:11:52]} dxc4 {[%emt 0:13:28]} 14. Bxc4 {[%emt 0:01:51]} b5 {[%emt 0:00:35]} 15. Be2 {[%emt 0:00:54]} Nd5 {[%emt 0:00:05]} 16. g5 {[%emt 0:02:25]} hxg5 {[%emt 0:00:06]} 17. Nxg5 {[%emt 0:07:00]} Bf5 {[%emt 0:00:30]} 18. Rd1 {[%emt 0:02:11]} Nf4 {[%emt 0:03:38]} 19. Bg4 {[%emt 0:04:23]} Na6 {[%emt 0:08:06]} 20. Bxf5 {[%emt 0:23:06]} exf5 {[%emt 0:00:26]} 21. c4 {[%emt 0:00:16]} bxc4 {[%emt 0:06:50]} 22. Qg3 {[%emt 0:00:22]} f6 {[%emt 0:10:38]} 23. Qxf4 {[%emt 0:01:13]} fxe5 {[%emt 0:00:01]} 24. dxe5 {[%emt 0:01:08]} 1-0

[Event "41st Jacques-Lemans-Open 2022"]
[Site "St. Veit/Glan"]
[Date "2022.07.12"]
[Round "5.28"]
[White "Holzmann, Herbert"]
[Black "Praznik, Anton"]
[Result "1/2-1/2"]
[ECO "A05"]
[WhiteElo "1979"]
[BlackElo "2137"]
[Annotator "ChessBase"]
[PlyCount "44"]
[EventDate "2022.07.09"]
[EventType "swiss"]
[EventCountry "AUT"]
[SourceTitle "playchess.com"]
[Source "ChessBase"]
[SourceQuality "1"]
[TimeControl "40/5400+30:1800+30"]

1. Nf3 {[%emt 0:00:04]} Nf6 {[%emt 0:00:22]} 2. c4 {[%emt 0:00:08]} g6 {[%emt 0:00:34]} 3. Nc3 {[%emt 0:00:57]} Bg7 {[%emt 0:00:25]} 4. d4 {[%emt 0:00:22]} c5 {[%emt 0:00:44]} 5. e4 {[%emt 0:02:16]} d6 {[%emt 0:02:11]} 6. Be2 {[%emt 0:02:14]} O-O {[%emt 0:00:41]} 7. d5 {[%emt 0:01:07]} Re8 {[%emt 0:01:58]} 8. O-O {[%emt 0:00:26]} e6 {[%emt 0:01:22]} 9. Bg5 {[%emt 0:03:46]} h6 {[%emt 0:01:46]} 10. Bf4 {[%emt 0:02:55]} exd5 {[%emt 0:02:02]} 11. exd5 {[%emt 0:01:38]} Ne4 {[%emt 0:04:50]} 12. Nxe4 {[%emt 0:04:29]} Rxe4 {[%emt 0:00:28]} 13. Bc1 {[%emt 0:01:30]} Nd7 {[%emt 0:05:31]} 14. Bd3 {[%emt 0:00:10]} Re8 {[%emt 0:00:32]} 15. Re1 {[%emt 0:01:03]} Rxe1+ {[%emt 0:04:44]} 16. Qxe1 {[%emt 0:00:29]} Nf6 {[%emt 0:01:40]} 17. Bd2 {[%emt 0:00:52]} Bg4 {[%emt 0:03:42]} 18. Qd1 {[%emt 0:00:47]} Nd7 {[%emt 0:02:36]} 19. h3 {[%emt 0:00:24]} Bxf3 {[%emt 0:01:50]} 20. Qxf3 {[%emt 0:00:08]} Ne5 {[%emt 0:08:47]} 21. Qe2 {[%emt 0:02:27]} Nxd3 {[%emt 0:06:52]} 22. Qxd3 {[%emt 0:00:01]} Qd7 {[%emt 0:01:13]} 1/2-1/2

[Event "41st Jacques-Lemans-Open 2022"]
[Site "St. Veit/Glan"]
[Date "2022.07.12"]
[Round "5.29"]
[White "Tonel, Giulia"]
[Black "Wiedner, Robert"]
[Result "1/2-1/2"]
[ECO "B29"]
[WhiteElo "1969"]
[BlackElo "2133"]
[Annotator "ChessBase"]
[PlyCount "63"]
[EventDate "2022.07.09"]
[EventType "swiss"]
[EventCountry "AUT"]
[SourceTitle "playchess.com"]
[Source "ChessBase"]
[SourceQuality "1"]
[TimeControl "40/5400+30:1800+30"]

1. e4 {[%emt 0:01:26]} c5 {[%emt 0:00:09]} 2. Nf3 {[%emt 0:00:14]} Nf6 {[%emt 0:00:07]} 3. Nc3 {[%emt 0:00:10]} d5 {[%emt 0:00:12]} 4. exd5 {[%emt 0:03:23]} Nxd5 {[%emt 0:00:07]} 5. Ne4 {[%emt 0:07:37]} e6 {[%emt 0:06:27]} 6. c3 {[%emt 0:06:58]} Nc6 {[%emt 0:01:07]} 7. d4 {[%emt 0:01:35]} cxd4 {[%emt 0:00:17]} 8. cxd4 {[%emt 0:00:10]} Bb4+ {[%emt 0:07:37]} 9. Bd2 {[%emt 0:00:48]} Qb6 {[%emt 0:00:52]} 10. a3 {[%emt 0:09:12]} Be7 {[%emt 0:00:18]} 11. Bc3 {[%emt 0:11:54]} O-O {[%emt 0:00:55]} 12. Bc4 {[%emt 0:06:11]} Rd8 {[%emt 0:10:06]} 13. O-O {[%emt 0:04:03]} e5 {[%emt 0:01:03]} 14. Nfg5 {[%emt 0:10:42]} Bxg5 {[%emt 0:04:55]} 15. Nxg5 {[%emt 0:00:43]} Nxd4 {[%emt 0:06:48]} 16. Qh5 {[%emt 0:08:49]} Qg6 {[%emt 0:00:24]} 17. Qxg6 {[%emt 0:01:02]} hxg6 {[%emt 0:00:08]} 18. Rad1 {[%emt 0:00:43]} Bg4 {[%emt 0:10:09]} 19. f3 {[%emt 0:03:50]} Be6 {[%emt 0:04:48]} 20. Nxe6 {[%emt 0:05:51]} fxe6 {[%emt 0:00:09]} 21. Bxd4 {[%emt 0:00:10]} exd4 {[%emt 0:00:12]} 22. Rxd4 {[%emt 0:00:05]} Rd6 {[%emt 0:01:38]} 23. Re1 {[%emt 0:00:32]} Kf7 {[%emt 0:00:11]} 24. Rde4 {[%emt 0:00:17]} Re8 {[%emt 0:01:27]} 25. Kf2 {[%emt 0:00:51]} g5 {[%emt 0:00:31]} 26. g3 {[%emt 0:01:41]} Nc7 {[%emt 0:02:32]} 27. R1e2 {[%emt 0:01:07]} Kf6 {[%emt 0:00:26]} 28. Re5 {[%emt 0:01:09]} Rh8 {[%emt 0:00:25]} 29. Kg2 {[%emt 0:00:24]} Rhd8 {[%emt 0:01:18]} 30. Kf2 {[%emt 0:01:01]} b6 {[%emt 0:01:47]} 31. Bb3 {[%emt 0:02:10]} Rd2 {[%emt 0:01:40]} 32. R5e3 {[%emt 0:04:16]} 1/2-1/2

[Event "41st Jacques-Lemans-Open 2022"]
[Site "St. Veit/Glan"]
[Date "2022.07.12"]
[Round "5.30"]
[White "Erber, Siegfried"]
[Black "Schippel, Gert"]
[Result "1/2-1/2"]
[ECO "B23"]
[WhiteElo "1967"]
[BlackElo "2106"]
[Annotator "ChessBase"]
[PlyCount "31"]
[EventDate "2022.07.09"]
[EventType "swiss"]
[EventCountry "AUT"]
[SourceTitle "playchess.com"]
[Source "ChessBase"]
[SourceQuality "1"]
[TimeControl "40/5400+30:1800+30"]

1. e4 {[%emt 0:00:07]} c5 {[%emt 0:00:05]} 2. Nc3 {[%emt 0:00:09]} e6 {[%emt 0:00:07]} 3. g3 {[%emt 0:00:16]} d5 {[%emt 0:00:12]} 4. d3 {[%emt 0:00:27]} Nf6 {[%emt 0:01:57]} 5. Bg2 {[%emt 0:03:39]} Be7 {[%emt 0:03:00]} 6. Nh3 {[%emt 0:10:26]} dxe4 {[%emt 0:01:59]} 7. Nxe4 {[%emt 0:01:31]} Nxe4 {[%emt 0:00:14]} 8. Bxe4 {[%emt 0:00:25]} Nd7 {[%emt 0:01:00]} 9. O-O {[%emt 0:01:26]} O-O {[%emt 0:00:33]} 10. Nf4 {[%emt 0:01:56]} Nf6 {[%emt 0:03:32]} 11. Bg2 {[%emt 0:00:58]} Qc7 {[%emt 0:04:35]} 12. b3 {[%emt 0:07:10]} Bd7 {[%emt 0:07:25]} 13. Bb2 {[%emt 0:00:50]} Bc6 {[%emt 0:00:53]} 14. Bxc6 {[%emt 0:02:08]} Qxc6 {[%emt 0:00:10]} 15. Nh5 {[%emt 0:00:20]} Nxh5 {[%emt 0:15:43]} 16. Qxh5 {[%emt 0:00:18]} 1/2-1/2

[Event "41st Jacques-Lemans-Open 2022"]
[Site "St. Veit/Glan"]
[Date "2022.07.13"]
[Round "5.31"]
[White "Wendl, Philipp"]
[Black "Buchegger, Fridolin"]
[Result "0-1"]
[ECO "E91"]
[WhiteElo "2097"]
[BlackElo "1961"]
[Annotator "ChessBase"]
[PlyCount "178"]
[EventDate "2022.07.09"]
[EventType "swiss"]
[EventCountry "AUT"]
[SourceTitle "playchess.com"]
[Source "ChessBase"]
[SourceQuality "1"]
[TimeControl "40/5400+30:1800+30"]

1. d4 {[%emt 0:00:02]} Nf6 {[%emt 0:00:21]} 2. c4 {[%emt 0:00:06]} g6 {[%emt 0:00:07]} 3. Nc3 {[%emt 0:00:05]} Bg7 {[%emt 0:00:07]} 4. e4 {[%emt 0:00:04]} d6 {[%emt 0:00:07]} 5. Nf3 {[%emt 0:00:05]} O-O {[%emt 0:00:07]} 6. Be2 {[%emt 0:00:05]} Na6 {[%emt 0:02:19]} 7. O-O {[%emt 0:01:38]} e5 {[%emt 0:00:20]} 8. Bg5 {[%emt 0:08:23]} exd4 {[%emt 0:01:32]} 9. Qxd4 {[%emt 0:03:06]} h6 {[%emt 0:01:38]} 10. Bh4 {[%emt 0:06:13]} g5 {[%emt 0:01:27]} 11. Bg3 {[%emt 0:00:33]} Nc5 {[%emt 0:04:29]} 12. e5 {[%emt 0:08:07]} Nh5 {[%emt 0:06:31]} 13. Rad1 {[%emt 0:07:19]} Nxg3 {[%emt 0:01:16]} 14. fxg3 {[%emt 0:01:20]} g4 {[%emt 0:03:26]} 15. Nh4 {[%emt 0:00:41]} Bxe5 {[%emt 0:00:16]} 16. Qe3 {[%emt 0:02:08]} Qg5 {[%emt 0:03:29]} 17. Qxg5+ {[%emt 0:02:40]} hxg5 {[%emt 0:00:09]} 18. Nf5 {[%emt 0:00:06]} Bxf5 {[%emt 0:03:42]} 19. Rxf5 {[%emt 0:00:46]} f6 {[%emt 0:04:10]} 20. Nb5 {[%emt 0:04:42]} Rf7 {[%emt 0:09:20]} 21. Bxg4 {[%emt 0:01:28]} a6 {[%emt 0:00:41]} 22. Nd4 {[%emt 0:00:16]} a5 {[%emt 0:12:41]} 23. b3 {[%emt 0:04:09]} Kg7 {[%emt 0:02:38]} 24. Rf3 {[%emt 0:02:45]} Bxd4+ {[%emt 0:01:45]} 25. Rxd4 {[%emt 0:00:25]} Re7 {[%emt 0:00:44]} 26. Rf1 {[%emt 0:04:20]} Re3 {[%emt 0:03:35]} 27. Rd5 {[%emt 0:05:02]} Re5 {[%emt 0:10:26]} 28. Bf3 {[%emt 0:03:35]} f5 {[%emt 0:02:09]} 29. Bd1 {[%emt 0:05:00]} Rf8 {[%emt 0:04:41]} 30. Bc2 {[%emt 0:00:26]} f4 {[%emt 0:00:42]} 31. gxf4 {[%emt 0:03:11]} gxf4 {[%emt 0:02:10]} 32. Rd2 {[%emt 0:01:48]} Kh6 {[%emt 0:01:23]} 33. Rdf2 {[%emt 0:01:22]} Kg5 {[%emt 0:00:43]} 34. g3 {[%emt 0:00:23]} Ne6 {[%emt 0:00:41]} 35. h4+ {[%emt 0:08:56]} Kf6 {[%emt 0:10:18]} 36. gxf4 {[%emt 0:00:51]} Rg8+ {[%emt 0:00:07]} 37. Kh2 {[%emt 0:01:14]} Rh5 {[%emt 0:00:12]} 38. Kh3 {[%emt 0:05:27]} Rgh8 {[%emt 0:00:48]} 39. Kg3 {[%emt 0:05:26]} Rxh4 {[%emt 0:00:32]} 40. Bd1 {[%emt 0:02:02]} Kf5 {[%emt 0:07:16]} 41. Bc2+ {[%emt 0:31:27]} Kf6 {[%emt 0:30:14]} 42. Rg1 {[%emt 0:00:00]} Rh3+ {[%emt 0:00:00]} 43. Kg2 {[%emt 0:00:00]} Rh2+ {[%emt 0:00:00]} 44. Kf1 {[%emt 0:00:00]} Rxf2+ {[%emt 0:00:00]} 45. Kxf2 {[%emt 0:00:00]} Rh2+ {[%emt 0:00:00]} 46. Rg2 {[%emt 0:00:00]} Rxg2+ {[%emt 0:00:00]} 47. Kxg2 {[%emt 0:00:00]} Nxf4+ {[%emt 0:00:00]} 48. Kf3 {[%emt 0:00:00]} Ke5 {[%emt 0:00:00]} 49. Ke3 {[%emt 0:00:00]} c6 {[%emt 0:00:00]} 50. a3 {[%emt 0:00:00]} d5 {[%emt 0:00:00]} 51. cxd5 {[%emt 0:00:00]} cxd5 {[%emt 0:00:00]} 52. Bh7 {[%emt 0:00:00]} d4+ {[%emt 0:00:00]} 53. Kd2 {[%emt 0:00:00]} Kd5 {[%emt 0:00:00]} 54. Bf5 {[%emt 0:00:00]} Ne6 {[%emt 0:00:00]} 55. Bg6 {[%emt 0:00:00]} Nc7 {[%emt 0:00:00]} 56. Bd3 {[%emt 0:00:00]} Kc5 {[%emt 0:00:00]} 57. Kc2 {[%emt 0:00:00]} Nb5 {[%emt 0:00:00]} 58. Kb2 {[%emt 0:00:00]} Nc3 {[%emt 0:00:00]} 59. Kc2 {[%emt 0:00:14]} b6 {[%emt 0:00:00]} 60. Ba6 {[%emt 0:03:25]} Nb5 {[%emt 0:00:00]} 61. Kb2 {[%emt 0:00:21]} d3 {[%emt 0:01:47]} 62. Kc1 {[%emt 0:05:35]} d2+ {[%emt 0:05:14]} 63. Kxd2 {[%emt 0:00:21]} Nxa3 {[%emt 0:00:08]} 64. Kc3 {[%emt 0:01:08]} Nb5+ {[%emt 0:00:12]} 65. Kb2 {[%emt 0:00:12]} Kb4 {[%emt 0:00:24]} 66. Bb7 {[%emt 0:00:16]} Kc5 {[%emt 0:02:30]} 67. Ba6 {[%emt 0:01:03]} Nc7 {[%emt 0:00:14]} 68. Bd3 {[%emt 0:00:45]} Kd4 {[%emt 0:00:25]} 69. Be2 {[%emt 0:00:22]} Ke3 {[%emt 0:00:27]} 70. Bc4 {[%emt 0:00:05]} b5 {[%emt 0:00:37]} 71. Bf7 {[%emt 0:00:11]} b4 {[%emt 0:00:40]} 72. Bc4 {[%emt 0:00:27]} Kd2 {[%emt 0:00:06]} 73. Bf7 {[%emt 0:00:55]} Nb5 {[%emt 0:00:06]} 74. Bg8 {[%emt 0:00:13]} Nc3 {[%emt 0:00:10]} 75. Bf7 {[%emt 0:00:16]} Nd1+ {[%emt 0:00:06]} 76. Kb1 {[%emt 0:00:13]} Kc3 {[%emt 0:00:09]} 77. Bg8 {[%emt 0:00:26]} Nf2 {[%emt 0:00:32]} 78. Bf7 {[%emt 0:00:10]} Ne4 {[%emt 0:00:17]} 79. Bg8 {[%emt 0:00:12]} Nd2+ {[%emt 0:00:05]} 80. Ka2 {[%emt 0:00:04]} Kc2 {[%emt 0:00:14]} 81. Bh7+ {[%emt 0:00:07]} Kc1 {[%emt 0:00:08]} 82. Bg8 {[%emt 0:00:07]} Ne4 {[%emt 0:00:21]} 83. Bf7 {[%emt 0:00:10]} Nc3+ {[%emt 0:00:06]} 84. Ka1 {[%emt 0:00:03]} Kc2 {[%emt 0:00:11]} 85. Bc4 {[%emt 0:00:35]} Ne4 {[%emt 0:00:28]} 86. Ka2 {[%emt 0:01:03]} Nc5 {[%emt 0:00:23]} 87. Bf7 {[%emt 0:00:17]} Nd3 {[%emt 0:00:15]} 88. Bg6 {[%emt 0:00:05]} Kc3 {[%emt 0:00:06]} 89. Kb1 {[%emt 0:01:09]} Nc5 {[%emt 0:00:08]} 0-1

[Event "41st Jacques-Lemans-Open 2022"]
[Site "St. Veit/Glan"]
[Date "2022.07.12"]
[Round "5.32"]
[White "Elpons, Walter"]
[Black "Guetz, Wolfgang"]
[Result "0-1"]
[ECO "A45"]
[WhiteElo "1952"]
[BlackElo "2034"]
[Annotator "ChessBase"]
[PlyCount "68"]
[EventDate "2022.07.09"]
[EventType "swiss"]
[EventCountry "AUT"]
[SourceTitle "playchess.com"]
[Source "ChessBase"]
[SourceQuality "1"]
[TimeControl "40/5400+30:1800+30"]

1. d4 {[%emt 0:00:03]} Nf6 {[%emt 0:00:04]} 2. Bf4 {[%emt 0:00:08]} c6 {[%emt 0:00:10]} 3. e3 {[%emt 0:00:25]} Qb6 {[%emt 0:00:13]} 4. b3 {[%emt 0:00:39]} d6 {[%emt 0:00:55]} 5. c3 {[%emt 0:01:11]} g6 {[%emt 0:00:27]} 6. h3 {[%emt 0:00:58]} Bg7 {[%emt 0:00:58]} 7. Nf3 {[%emt 0:00:25]} O-O {[%emt 0:00:45]} 8. Bd3 {[%emt 0:01:25]} Nbd7 {[%emt 0:01:40]} 9. e4 {[%emt 0:03:31]} e5 {[%emt 0:09:37]} 10. dxe5 {[%emt 0:03:19]} dxe5 {[%emt 0:01:10]} 11. Be3 {[%emt 0:03:11]} Qc7 {[%emt 0:02:14]} 12. O-O {[%emt 0:01:11]} Nh5 {[%emt 0:01:37]} 13. Qc1 {[%emt 0:09:10]} Nf4 {[%emt 0:01:58]} 14. Qc2 {[%emt 0:10:33]} h6 {[%emt 0:06:14]} 15. a4 {[%emt 0:06:56]} Nf6 {[%emt 0:09:41]} 16. Bc4 {[%emt 0:12:18]} Kh7 {[%emt 0:09:15]} 17. Nbd2 {[%emt 0:03:22]} N6h5 {[%emt 0:02:03]} 18. Kh2 {[%emt 0:03:56]} f5 {[%emt 0:02:14]} 19. Ng1 {[%emt 0:07:02]} Ne6 {[%emt 0:15:39]} 20. Ndf3 {[%emt 0:03:44]} f4 {[%emt 0:04:27]} 21. Bc1 {[%emt 0:00:25]} g5 {[%emt 0:01:54]} 22. Ba3 {[%emt 0:00:44]} c5 {[%emt 0:01:17]} 23. Rad1 {[%emt 0:02:39]} Nf6 {[%emt 0:00:53]} 24. Bc1 {[%emt 0:03:31]} g4 {[%emt 0:01:41]} 25. Nh4 {[%emt 0:00:33]} Ng5 {[%emt 0:01:11]} 26. Bd3 {[%emt 0:05:53]} Qf7 {[%emt 0:03:13]} 27. Bxf4 {[%emt 0:00:45]} gxh3 {[%emt 0:01:57]} 28. Bxe5 {[%emt 0:04:53]} Ng4+ {[%emt 0:00:47]} 29. Kh1 {[%emt 0:00:43]} hxg2+ {[%emt 0:01:16]} 30. Kxg2 {[%emt 0:00:28]} Bxe5 {[%emt 0:01:13]} 31. Nf5 {[%emt 0:03:02]} Qh5 {[%emt 0:01:38]} 32. Rfe1 {[%emt 0:01:30]} Qh2+ {[%emt 0:05:59]} 33. Kf1 {[%emt 0:00:03]} Qh1 {[%emt 0:03:41]} 34. Qe2 {[%emt 0:01:16]} Nh2# {[%emt 0:00:14]} 0-1